[Event "Steinthor Baldursson memorial 2018"]
[Site "?"]
[Date "2018.01.05"]
[Round "3"]
[White "Bannout, Edvin"]
[Black "Apol, Luitjen Akselsson"]
[Result "1/2-1/2"]
[ECO "B50"]
[WhiteElo "1869"]
[BlackElo "1600"]
[PlyCount "119"]
[EventDate "2018.??.??"]
[EventType "swiss"]
[EventCountry "ISL"]
[SourceTitle "Kopavogur"]
[TimeControl "5400+30"]
[WhiteClock "0:00:46"]
[BlackClock "0:03:59"]

1. e4 {[%emt 0:00:00]} c5 {[%emt 0:00:03]} 2. Nf3 {[%emt 0:00:00]} d6 {[%emt 0:00:09]} 3. c3 {[%emt 0:00:04]} Nf6 {[%emt 0:00:25]} 4. Be2 {[%emt 0:00:41]} Bd7 {[%emt 0:01:00]} 5. d3 {[%emt 0:00:21]} e6 {[%emt 0:01:27]} 6. O-O {[%emt 0:00:26]} Be7 {[%emt 0:00:31]} 7. Re1 {[%emt 0:01:34]} O-O {[%emt 0:01:19]} 8. Bf1 {[%emt 0:00:44]} Bc6 {[%emt 0:04:13]} 9. a4 {[%emt 0:09:06]} b6 {[%emt 0:07:31]} 10. Nbd2 {[%emt 0:02:39]} Nbd7 {[%emt 0:02:48]} 11. d4 {[%emt 0:03:33]} cxd4 {[%emt 0:05:40]} 12. cxd4 {[%emt 0:07:14]} Bb7 {[%emt 0:02:26]} 13. a5 {[%emt 0:16:42]} a6 {[%emt 0:11:39]} 14. axb6 {[%emt 0:01:54]} Qxb6 {[%emt 0:03:02]} 15. Bd3 {[%emt 0:03:15]} e5 {[%emt 0:11:55]} 16. Nc4 {[%emt 0:03:13]} Qc7 {[%emt 0:00:22]} 17. Na5 {[%emt 0:05:04]} Rfc8 {[%emt 0:09:47]} 18. Ng5 {[%emt 0:22:36]} Qb6 {[%emt 0:12:13]} 19. Bc4 {[%emt 0:07:35]} Rf8 {[%emt 0:06:56]} 20. Be3 {[%emt 0:04:00]} Nxe4 {[%emt 0:11:19]} 21. dxe5 {[%emt 0:02:51]} Ndc5 {[%emt 0:01:30]} 22. Nxb7 {[%emt 0:02:38]} Bxg5 {[%emt 0:02:58]} 23. Nxd6 {[%emt 0:01:39]} Bxe3 {[%emt 0:01:09]} 24. Rxe3 {[%emt 0:00:41]} Nxd6 {[%emt 0:00:08]} 25. exd6 {[%emt 0:00:58]} Rad8 {[%emt 0:00:39]} 26. Qc2 {[%emt 0:01:26]} Qxd6 {[%emt 0:00:34]} 27. Rh3 {[%emt 0:00:20]} g6 {[%emt 0:00:25]} 28. b4 {[%emt 0:00:37]} Qd4 {[%emt 0:00:57]} 29. Re1 {[%emt 0:01:11]} Nb7 {[%emt 0:00:35]} 30. Bxa6 {[%emt 0:01:18]} Qb6 {[%emt 0:00:35]} 31. Bc4 {[%emt 0:00:26]} Rc8 {[%emt 0:00:22]} 32. Rf3 {[%emt 0:00:32]} Nd6 {[%emt 0:00:31]} 33. Rf4 {[%emt 0:00:25]} Qxb4 {[%emt 0:00:38]} 34. Bxf7+ {[%emt 0:00:25]} Nxf7 {[%emt 0:00:06]} 35. Qe4 {[%emt 0:00:51]} Qxe4 {[%emt 0:00:13]} 36. Rfxe4 {[%emt 0:00:04]} Kg7 {[%emt 0:00:45]} 37. h4 {[%emt 0:00:13]} Rc5 {[%emt 0:00:35]} 38. g4 {[%emt 0:00:38]} Rc3 {[%emt 0:00:39]} 39. Kg2 {[%emt 0:00:09]} Nd6 {[%emt 0:00:38]} 40. Re6 {[%emt 0:00:21]} Nc4 {[%emt 0:00:28]} 41. R1e2 {[%emt 0:00:09]} Rf7 {[%emt 0:00:16]} 42. Kh2 {[%emt 0:01:13]} Na5 {[%emt 0:00:24]} 43. h5 {[%emt 0:00:22]} gxh5 {[%emt 0:00:15]} 44. gxh5 {[%emt 0:00:03]} h6 {[%emt 0:01:07]} 45. Kg2 {[%emt 0:00:27]} Nb3 {[%emt 0:00:17]} 46. Rg6+ {[%emt 0:00:08]} Kh7 {[%emt 0:00:10]} 47. Ree6 {[%emt 0:00:13]} Rcf3 {[%emt 0:00:40]} 48. Rxh6+ {[%emt 0:00:08]} Kg7 {[%emt 0:00:11]} 49. Rhg6+ {[%emt 0:00:21]} Kh7 {[%emt 0:00:40]} 50. Rh6+ {[%emt 0:00:12]} Kg7 {[%emt 0:00:06]} 51. Rhg6+ {[%emt 0:00:08]} Kf8 {[%emt 0:01:08]} 52. h6 {[%emt 0:00:19]} Rxf2+ {[%emt 0:00:04]} 53. Kg3 {[%emt 0:00:27]} Nd4 {[%emt 0:01:12]} 54. Ra6 {[%emt 0:01:14]} Ne2+ {[%emt 0:00:25]} 55. Kg4 {[%emt 0:00:47]} Rg2+ {[%emt 0:00:40]} 56. Kh4 {[%emt 0:00:24]} Rh2+ {[%emt 0:00:31]} 57. Kg4 {[%emt 0:00:30]} Rf4+ {[%emt 0:00:23]} 58. Kg5 {[%emt 0:00:15]} Rg2+ {[%emt 0:00:22]} 59. Kh5 {[%emt 0:00:09]} Rh2+ {[%emt 0:00:43]} 60. Kg5 {[%emt 0:00:08]} 1/2-1/2

[Event "Steinthor Baldursson memorial 2018"]
[Site "?"]
[Date "2018.01.05"]
[Round "3"]
[White "Zarovs, Aleksandrs"]
[Black "Birkisson, Bjorn Holm"]
[Result "0-1"]
[ECO "B06"]
[WhiteElo "1831"]
[BlackElo "2084"]
[PlyCount "90"]
[EventDate "2018.??.??"]
[EventType "swiss"]
[EventCountry "ISL"]
[SourceTitle "Kopavogur"]
[TimeControl "5400+30"]
[WhiteClock "0:02:10"]
[BlackClock "0:00:33"]

1. e4 {[%emt 0:00:00]} g6 {[%emt 0:03:29]} 2. Nc3 {[%emt 0:01:24]} Bg7 {[%emt 0:00:20]} 3. h4 {[%emt 0:06:11]} h6 {[%emt 0:05:02]} 4. d4 {[%emt 0:00:38]} c5 {[%emt 0:00:24]} 5. dxc5 {[%emt 0:01:38]} Na6 {[%emt 0:25:16]} 6. Bxa6 {[%emt 0:02:19]} bxa6 {[%emt 0:00:16]} 7. h5 {[%emt 0:00:57]} g5 {[%emt 0:01:21]} 8. f4 {[%emt 0:12:24]} Qa5 {[%emt 0:02:59]} 9. Nge2 {[%emt 0:07:35]} Bb7 {[%emt 0:02:34]} 10. Qd3 {[%emt 0:03:08]} Nf6 {[%emt 0:01:24]} 11. Bd2 {[%emt 0:02:52]} Qxc5 {[%emt 0:01:06]} 12. O-O-O {[%emt 0:14:17]} Rb8 {[%emt 0:12:23]} 13. Be3 {[%emt 0:07:23]} Qc7 {[%emt 0:02:18]} 14. fxg5 {[%emt 0:08:35]} hxg5 {[%emt 0:03:37]} 15. Bxa7 {[%emt 0:09:59]} Rc8 {[%emt 0:02:41]} 16. Bd4 {[%emt 0:01:28]} Rxh5 {[%emt 0:10:35]} 17. Rxh5 {[%emt 0:00:46]} Nxh5 {[%emt 0:00:10]} 18. Bxg7 {[%emt 0:00:53]} Nxg7 {[%emt 0:00:19]} 19. Rh1 {[%emt 0:00:47]} Ne6 {[%emt 0:04:40]} 20. Rh8+ {[%emt 0:02:05]} Nf8 {[%emt 0:00:05]} 21. Qd4 {[%emt 0:00:49]} f6 {[%emt 0:02:52]} 22. Qd3 {[%emt 0:02:30]} Qc4 {[%emt 0:01:35]} 23. Qh3 {[%emt 0:05:18]} Qf7 {[%emt 0:00:56]} 24. Qh2 {[%emt 0:03:40]} d6 {[%emt 0:03:27]} 25. Ng3 {[%emt 0:02:53]} Rc4 {[%emt 0:05:46]} 26. Qg1 {[%emt 0:01:44]} Qe6 {[%emt 0:02:51]} 27. Qb6 {[%emt 0:00:43]} Qc8 {[%emt 0:00:16]} 28. Qe3 {[%emt 0:00:15]} Qc5 {[%emt 0:00:35]} 29. Qxc5 {[%emt 0:00:41]} Rxc5 {[%emt 0:00:05]} 30. Kd2 {[%emt 0:00:14]} Kf7 {[%emt 0:00:33]} 31. Ke3 {[%emt 0:00:23]} Kg7 {[%emt 0:02:02]} 32. Rh2 {[%emt 0:00:20]} e6 {[%emt 0:00:48]} 33. Nge2 {[%emt 0:00:48]} Re5 {[%emt 0:01:51]} 34. Kd3 {[%emt 0:00:38]} a5 {[%emt 0:00:48]} 35. Ng3 {[%emt 0:00:20]} Ba6+ {[%emt 0:00:39]} 36. Kd2 {[%emt 0:00:30]} Nd7 {[%emt 0:00:14]} 37. Nh5+ {[%emt 0:00:36]} Kg6 {[%emt 0:00:07]} 38. g4 {[%emt 0:00:29]} Nb6 {[%emt 0:01:16]} 39. b3 {[%emt 0:00:39]} d5 {[%emt 0:00:15]} 40. exd5 {[%emt 0:00:31]} Nxd5 {[%emt 0:00:34]} 41. Nxd5 {[%emt 0:00:37]} Rxd5+ {[%emt 0:00:06]} 42. Ke3 {[%emt 0:00:17]} f5 {[%emt 0:00:17]} 43. gxf5+ {[%emt 0:00:29]} exf5 {[%emt 0:00:05]} 44. c4 {[%emt 0:00:43]} Rd7 {[%emt 0:01:16]} 45. Ng3 {[%emt 0:00:31]} f4+ {[%emt 0:00:07] Kd4} 0-1

[Event "Steinthor Baldursson memorial 2018"]
[Site "?"]
[Date "2018.01.05"]
[Round "3"]
[White "Skaale, Janus"]
[Black "Jappinen, Erland"]
[Result "0-1"]
[ECO "B18"]
[WhiteElo "1752"]
[BlackElo "2026"]
[PlyCount "88"]
[EventDate "2018.??.??"]
[EventType "swiss"]
[EventCountry "ISL"]
[SourceTitle "Kopavogur"]
[TimeControl "5400+30"]
[WhiteClock "0:53:51"]
[BlackClock "0:01:34"]

1. e4 {[%emt 0:00:00]} c6 {[%emt 0:00:00]} 2. d4 {[%emt 0:00:00]} d5 {[%emt 0:00:00]} 3. Nc3 {[%emt 0:00:00]} dxe4 {[%emt 0:00:00]} 4. Nxe4 {[%emt 0:00:00]} Bf5 {[%emt 0:00:00]} 5. Ng3 {[%emt 0:00:00]} Bg6 {[%emt 0:00:00]} 6. Nf3 {[%emt 0:00:13]} e6 {[%emt 0:00:44]} 7. h4 {[%emt 0:00:32]} h6 {[%emt 0:00:05]} 8. h5 {[%emt 0:00:06]} Bh7 {[%emt 0:00:01]} 9. Bd3 {[%emt 0:00:09]} Bxd3 {[%emt 0:00:05]} 10. Qxd3 {[%emt 0:00:06]} Nd7 {[%emt 0:00:50]} 11. Bd2 {[%emt 0:00:21]} Ngf6 {[%emt 0:00:13]} 12. O-O-O {[%emt 0:00:10]} Bd6 {[%emt 0:00:31]} 13. Ne4 {[%emt 0:08:04]} Qc7 {[%emt 0:01:11]} 14. Kb1 {[%emt 0:23:40]} Nxe4 {[%emt 0:07:28]} 15. Qxe4 {[%emt 0:00:52]} Nf6 {[%emt 0:00:05]} 16. Qe2 {[%emt 0:03:42]} Bf4 {[%emt 0:02:01]} 17. Bxf4 {[%emt 0:08:46]} Qxf4 {[%emt 0:00:02]} 18. Ne5 {[%emt 0:00:13]} Rd8 {[%emt 0:04:15]} 19. c3 {[%emt 0:16:15]} Qe4+ {[%emt 0:01:51]} 20. Qxe4 {[%emt 0:00:02]} Nxe4 {[%emt 0:00:10]} 21. Rh4 {[%emt 0:01:11]} Nf6 {[%emt 0:01:27]} 22. g4 {[%emt 0:07:16]} c5 {[%emt 0:04:58]} 23. f4 {[%emt 0:01:15]} Nd5 {[%emt 0:06:09]} 24. dxc5 {[%emt 0:03:08]} Nxc3+ {[%emt 0:00:29]} 25. bxc3 {[%emt 0:00:10]} Rxd1+ {[%emt 0:00:08]} 26. Kc2 {[%emt 0:00:19]} Rf1 {[%emt 0:02:51]} 27. Nd3 {[%emt 0:02:48]} Ke7 {[%emt 0:00:14]} 28. g5 {[%emt 0:01:13]} hxg5 {[%emt 0:00:29]} 29. fxg5 {[%emt 0:00:03]} Rf5 {[%emt 0:00:14]} 30. Rb4 {[%emt 0:01:32]} Rb8 {[%emt 0:04:34]} 31. c6 {[%emt 0:03:40]} b6 {[%emt 0:01:51]} 32. Rd4 {[%emt 0:08:17]} Rd8 {[%emt 0:01:26]} 33. h6 {[%emt 0:05:22]} gxh6 {[%emt 0:02:54]} 34. gxh6 {[%emt 0:00:49]} Rxd4 {[%emt 0:05:00]} 35. cxd4 {[%emt 0:00:08]} Rh5 {[%emt 0:00:10]} 36. c7 {[%emt 0:02:33]} Kd7 {[%emt 0:00:29]} 37. Ne5+ {[%emt 0:00:08]} Kxc7 {[%emt 0:00:07]} 38. Nxf7 {[%emt 0:00:11]} Kd7 {[%emt 0:00:45]} 39. Ne5+ {[%emt 0:01:45]} Kd6 {[%emt 0:01:07]} 40. Kc3 {[%emt 0:02:04]} Kd5 {[%emt 0:00:28]} 41. Ng4 {[%emt 0:00:38]} Rh3+ {[%emt 0:01:34]} 42. Kc2 {[%emt 0:00:47]} Kxd4 {[%emt 0:00:26]} 43. Kd2 {[%emt 0:01:11]} Rh4 {[%emt 0:00:35]} 44. h7 {[%emt 0:00:47]} Rxh7 {[%emt 0:00:12]} 0-1

[Event "Steinthor Baldursson memorial 2018"]
[Site "?"]
[Date "2018.01.05"]
[Round "3"]
[White "Heidarsson, Arnar"]
[Black "Briem, Stephan"]
[Result "0-1"]
[ECO "A91"]
[WhiteElo "1592"]
[BlackElo "1890"]
[PlyCount "45"]
[EventDate "2018.??.??"]
[EventType "swiss"]
[EventCountry "ISL"]
[SourceTitle "Kopavogur"]
[TimeControl "5400+30"]
[WhiteClock "0:17:57"]
[BlackClock "0:12:29"]

1. d4 {[%emt 0:00:00]} f5 {[%emt 0:00:21]} 2. g3 {[%emt 0:00:00]} Nf6 {[%emt 0:00:23]} 3. c4 {[%emt 0:00:55]} e6 {[%emt 0:00:32]} 4. Bg2 {[%emt 0:00:29]} Be7 {[%emt 0:00:33]} 5. Nc3 {[%emt 0:01:25]} O-O {[%emt 0:00:43]} 6. Nf3 {[%emt 0:00:56]} d6 {[%emt 0:00:29]} 7. O-O {[%emt 0:02:44]} a5 {[%emt 0:01:26]} 8. Qc2 {[%emt 0:02:28]} Nc6 {[%emt 0:01:39]} 9. Rd1 {[%emt 0:05:29]} Qe8 {[%emt 0:03:14]} 10. e4 {[%emt 0:04:02]} e5 {[%emt 0:04:50]} 11. a3 {[%emt 0:09:09]} Qh5 {[%emt 0:06:11]} 12. d5 {[%emt 0:07:21]} Nb8 {[%emt 0:10:36]} 13. Re1 {[%emt 0:14:49]} Nxe4 {[%emt 0:12:39]} 14. Nxe4 {[%emt 0:00:13]} fxe4 {[%emt 0:00:10]} 15. Qxe4 {[%emt 0:00:09]} Bf5 {[%emt 0:00:35]} 16. Qe3 {[%emt 0:00:46]} Nd7 {[%emt 0:02:13]} 17. Bd2 {[%emt 0:14:59]} h6 {[%emt 0:11:02]} 18. Bc3 {[%emt 0:04:16]} Nf6 {[%emt 0:10:09]} 19. h4 {[%emt 0:12:56]} Ng4 {[%emt 0:04:03]} 20. Qc1 {[%emt 0:00:52]} g5 {[%emt 0:01:27]} 21. hxg5 {[%emt 0:00:26]} Bd3 {[%emt 0:05:36]} 22. Nh4 {[%emt 0:04:07]} hxg5 {[%emt 0:04:12]} 23. Ra2 0-1

[Event "Steinthor Baldursson memorial 2018"]
[Site "?"]
[Date "2018.01.06"]
[Round "5"]
[White "Dijkhuis, Tycho"]
[Black "Eydsteinsson, Silas"]
[Result "1-0"]
[ECO "C10"]
[WhiteElo "2402"]
[BlackElo "2035"]
[PlyCount "111"]
[EventDate "2018.??.??"]
[EventType "swiss"]
[EventCountry "ISL"]
[SourceTitle "Kopavogur"]
[TimeControl "5400+30"]
[WhiteClock "0:01:21"]
[BlackClock "0:02:28"]

1. e4 {[%emt 0:00:00]} e6 {[%emt 0:00:00]} 2. d4 {[%emt 0:00:11]} d5 {[%emt 0:00:00]} 3. Nd2 {[%emt 0:01:29]} dxe4 {[%emt 0:00:36]} 4. Nxe4 {[%emt 0:00:16]} Bd7 {[%emt 0:00:11]} 5. Nf3 {[%emt 0:00:45]} Bc6 {[%emt 0:00:21]} 6. Bd3 {[%emt 0:00:44]} Nd7 {[%emt 0:00:35]} 7. c3 {[%emt 0:00:47]} Ngf6 {[%emt 0:00:56]} 8. Nxf6+ {[%emt 0:02:19]} Nxf6 {[%emt 0:00:41]} 9. Bf4 {[%emt 0:01:18]} Bxf3 {[%emt 0:04:12]} 10. Qxf3 {[%emt 0:00:09]} c6 {[%emt 0:05:37]} 11. O-O {[%emt 0:00:47]} Qd5 {[%emt 0:07:19]} 12. Qe2 {[%emt 0:00:59]} Be7 {[%emt 0:03:02]} 13. Be5 {[%emt 0:03:13]} O-O {[%emt 0:07:31]} 14. Rad1 {[%emt 0:07:08]} g6 {[%emt 0:08:18]} 15. f4 {[%emt 0:07:29]} Qd7 {[%emt 0:13:37]} 16. Rf3 {[%emt 0:39:27]} Nd5 {[%emt 0:08:08]} 17. Rh3 {[%emt 0:21:37]} f5 {[%emt 0:11:14]} 18. Rf3 {[%emt 0:00:44]} Rfd8 {[%emt 0:09:23]} 19. Rff1 {[%emt 0:01:19]} b5 {[%emt 0:03:17]} 20. Rfe1 {[%emt 0:01:17]} Kf7 {[%emt 0:01:31]} 21. c4 {[%emt 0:01:41]} bxc4 {[%emt 0:00:58]} 22. Bxc4 {[%emt 0:00:03]} a5 {[%emt 0:02:31]} 23. Rd3 {[%emt 0:01:52]} Re8 {[%emt 0:02:50]} 24. Rc1 {[%emt 0:00:31]} a4 {[%emt 0:02:42]} 25. Rh3 {[%emt 0:01:52]} Kg8 {[%emt 0:01:10]} 26. g4 {[%emt 0:00:23]} a3 {[%emt 0:04:19]} 27. b3 {[%emt 0:00:23]} Rac8 {[%emt 0:01:18]} 28. Kh1 {[%emt 0:01:01]} Nb6 {[%emt 0:00:42]} 29. gxf5 {[%emt 0:00:19]} Nxc4 {[%emt 0:00:15]} 30. Qxc4 {[%emt 0:03:15]} Qd5+ {[%emt 0:00:47]} 31. Qxd5 {[%emt 0:00:05]} cxd5 {[%emt 0:00:10]} 32. Rhc3 {[%emt 0:00:12]} Rxc3 {[%emt 0:00:11]} 33. Rxc3 {[%emt 0:00:02]} exf5 {[%emt 0:00:23]} 34. Rc7 {[%emt 0:00:51]} Kf8 {[%emt 0:01:22]} 35. Kg2 {[%emt 0:00:38]} h6 {[%emt 0:00:40]} 36. Kf3 {[%emt 0:00:30]} g5 {[%emt 0:00:22]} 37. fxg5 {[%emt 0:00:39]} hxg5 {[%emt 0:00:09]} 38. h4 {[%emt 0:00:03]} gxh4 {[%emt 0:01:03]} 39. Kf4 {[%emt 0:00:06]} Ra8 {[%emt 0:00:16]} 40. Kxf5 {[%emt 0:02:37]} Ra6 {[%emt 0:00:25]} 41. Rb7 {[%emt 0:00:53]} Rc6 {[%emt 0:00:26]} 42. Rc7 {[%emt 0:00:22]} Ra6 {[%emt 0:00:14]} 43. Kg4 {[%emt 0:00:36]} Rg6+ {[%emt 0:00:58]} 44. Kf5 {[%emt 0:00:27]} Ra6 {[%emt 0:00:21]} 45. Rc8+ {[%emt 0:00:37]} Kf7 {[%emt 0:00:11]} 46. Rh8 {[%emt 0:00:19]} Rc6 {[%emt 0:00:45]} 47. Rh7+ {[%emt 0:00:18]} Ke8 {[%emt 0:00:41]} 48. Bf4 {[%emt 0:00:18]} Rf6+ {[%emt 0:00:48]} 49. Ke5 {[%emt 0:00:14]} Kd7 {[%emt 0:00:17]} 50. Bg5 {[%emt 0:00:41]} Re6+ {[%emt 0:00:34]} 51. Kxd5 {[%emt 0:00:08]} Rd6+ {[%emt 0:00:30]} 52. Ke5 {[%emt 0:00:10]} Re6+ {[%emt 0:00:12]} 53. Kd5 {[%emt 0:00:05]} Rd6+ {[%emt 0:00:12]} 54. Kc4 {[%emt 0:01:05]} Rc6+ {[%emt 0:00:24]} 55. Kd3 {[%emt 0:00:11]} Re6 {[%emt 0:00:34]} 56. Bxh4 {[%emt 0:00:07]} 1-0

[Event "Steinthor Baldursson memorial 2018"]
[Site "?"]
[Date "2018.01.06"]
[Round "5"]
[White "Ragnarsson, Dagur"]
[Black "Tokranovs, Dmitrijs"]
[Result "1/2-1/2"]
[ECO "A57"]
[WhiteElo "2332"]
[BlackElo "2354"]
[PlyCount "64"]
[EventDate "2018.??.??"]
[EventType "swiss"]
[EventCountry "ISL"]
[SourceTitle "Kopavogur"]
[TimeControl "5400+30"]
[WhiteClock "0:13:22"]
[BlackClock "0:15:37"]

1. d4 {[%emt 0:00:00]} Nf6 {[%emt 0:00:00]} 2. c4 {[%emt 0:00:12]} c5 {[%emt 0:01:21]} 3. d5 {[%emt 0:00:09]} b5 {[%emt 0:00:05]} 4. Qc2 {[%emt 0:00:55]} g6 {[%emt 0:02:23]} 5. e4 {[%emt 0:00:18]} bxc4 {[%emt 0:01:01]} 6. Bxc4 {[%emt 0:03:03]} d6 {[%emt 0:00:05]} 7. Ne2 {[%emt 0:02:26]} Bg7 {[%emt 0:00:07]} 8. O-O {[%emt 0:01:21]} O-O {[%emt 0:00:23]} 9. Bg5 {[%emt 0:04:57]} Ba6 {[%emt 0:03:40]} 10. Nd2 {[%emt 0:01:20]} Qb6 {[%emt 0:02:55]} 11. h3 {[%emt 0:05:04]} Nbd7 {[%emt 0:04:55]} 12. f4 {[%emt 0:02:17]} Rab8 {[%emt 0:01:42]} 13. Rab1 {[%emt 0:00:15]} Qa5 {[%emt 0:02:08]} 14. Rf3 {[%emt 0:01:06]} Bxc4 {[%emt 0:03:35]} 15. Nxc4 {[%emt 0:00:43]} Qc7 {[%emt 0:00:48]} 16. Rd1 {[%emt 0:10:11]} Nb6 {[%emt 0:04:09]} 17. Ne3 {[%emt 0:02:21]} Qb7 {[%emt 0:09:41]} 18. Nc3 {[%emt 0:04:14]} Rfd8 {[%emt 0:13:26]} 19. e5 {[%emt 0:15:42]} dxe5 {[%emt 0:16:10]} 20. fxe5 {[%emt 0:00:09]} Nfd7 {[%emt 0:00:12]} 21. e6 {[%emt 0:02:19]} fxe6 {[%emt 0:04:32]} 22. dxe6 {[%emt 0:00:06]} Ne5 {[%emt 0:00:02]} 23. Rff1 {[%emt 0:03:15]} c4 {[%emt 0:04:23]} 24. Qf2 {[%emt 0:03:14]} Qc6 {[%emt 0:04:25]} 25. Rxd8+ {[%emt 0:07:12]} Rxd8 {[%emt 0:00:05]} 26. Bxe7 {[%emt 0:03:27]} Re8 {[%emt 0:00:04]} 27. Bf6 {[%emt 0:05:51]} Qxe6 {[%emt 0:03:47]} 28. Bxg7 {[%emt 0:00:09]} Kxg7 {[%emt 0:00:10]} 29. Qh4 {[%emt 0:03:56]} Re7 {[%emt 0:04:28]} 30. Qg5 {[%emt 0:02:31]} Rf7 {[%emt 0:01:15]} 31. Rxf7+ {[%emt 0:00:14]} Nxf7 {[%emt 0:00:29]} 32. Qf4 {[%emt 0:01:26]} Qe5 {[%emt 0:00:12]} 1/2-1/2

[Event "Steinthor Baldursson memorial 2018"]
[Site "?"]
[Date "2018.01.06"]
[Round "5"]
[White "Johannesson, Oliver Aron"]
[Black "Jappinen, Erland"]
[Result "1/2-1/2"]
[ECO "A06"]
[WhiteElo "2277"]
[BlackElo "2026"]
[PlyCount "67"]
[EventDate "2018.??.??"]
[EventType "swiss"]
[EventCountry "ISL"]
[SourceTitle "Kopavogur"]
[TimeControl "5400+30"]
[WhiteClock "0:45:30"]
[BlackClock "0:59:25"]

1. Nf3 {[%emt 0:02:38]} d5 {[%emt 0:00:03]} 2. c4 {[%emt 0:00:08]} c6 {[%emt 0:00:54]} 3. g3 {[%emt 0:00:07]} Nf6 {[%emt 0:01:22]} 4. Bg2 {[%emt 0:00:04]} Bf5 {[%emt 0:02:43]} 5. cxd5 {[%emt 0:00:20]} cxd5 {[%emt 0:00:31]} 6. Qb3 {[%emt 0:00:05]} Qb6 {[%emt 0:01:07]} 7. Qxb6 {[%emt 0:01:02]} axb6 {[%emt 0:00:01]} 8. Nc3 {[%emt 0:00:25]} Nc6 {[%emt 0:05:58]} 9. d3 {[%emt 0:01:34]} e5 {[%emt 0:03:51]} 10. O-O {[%emt 0:05:29]} h6 {[%emt 0:01:07]} 11. e4 {[%emt 0:08:13]} dxe4 {[%emt 0:02:44]} 12. dxe4 {[%emt 0:03:37]} Be6 {[%emt 0:07:59]} 13. Rd1 {[%emt 0:05:07]} Bc5 {[%emt 0:01:59]} 14. Nd5 {[%emt 0:01:24]} Nxe4 {[%emt 0:08:38]} 15. Nc7+ {[%emt 0:01:09]} Ke7 {[%emt 0:00:16]} 16. Be3 {[%emt 0:01:53]} Bxe3 {[%emt 0:01:08]} 17. fxe3 {[%emt 0:00:08]} Rxa2 {[%emt 0:03:29]} 18. Rxa2 {[%emt 0:02:25]} Bxa2 {[%emt 0:00:33]} 19. Nxe5 {[%emt 0:00:11]} Nxe5 {[%emt 0:00:16]} 20. Bxe4 {[%emt 0:00:02]} Nc6 {[%emt 0:03:44]} 21. Nd5+ {[%emt 0:02:04]} Bxd5 {[%emt 0:00:50]} 22. Rxd5 {[%emt 0:00:03]} Rd8 {[%emt 0:01:54]} 23. Rb5 {[%emt 0:00:08]} Kd6 {[%emt 0:00:30]} 24. Rxb6 {[%emt 0:00:22]} Kc7 {[%emt 0:00:16]} 25. Rb5 {[%emt 0:00:58]} Rd2 {[%emt 0:00:47]} 26. Rf5 {[%emt 0:01:54]} f6 {[%emt 0:00:41]} 27. Rf2 {[%emt 0:01:44]} Rxf2 {[%emt 0:04:38]} 28. Kxf2 {[%emt 0:00:03]} Ne5 {[%emt 0:00:20]} 29. h3 {[%emt 0:01:09]} b6 {[%emt 0:00:12]} 30. b3 {[%emt 0:00:20]} Kd6 {[%emt 0:00:13]} 31. Ke2 {[%emt 0:01:51]} Kc5 {[%emt 0:00:49]} 32. Kd2 {[%emt 0:00:13]} Kb4 {[%emt 0:00:24]} 33. Bd5 {[%emt 0:00:07]} Kc5 {[%emt 0:01:03]} 34. Be4 {[%emt 0:00:38]} 1/2-1/2

[Event "Steinthor Baldursson memorial 2018"]
[Site "?"]
[Date "2018.01.06"]
[Round "5"]
[White "Jonsson, Gauti Pall"]
[Black "Jazdanovs, Aleksandrs"]
[Result "0-1"]
[ECO "B90"]
[WhiteElo "2161"]
[BlackElo "2218"]
[PlyCount "62"]
[EventDate "2018.??.??"]
[EventType "swiss"]
[EventCountry "ISL"]
[SourceTitle "Kopavogur"]
[TimeControl "5400+30"]
[WhiteClock "0:35:42"]
[BlackClock "0:52:31"]

1. e4 {[%emt 0:00:00]} c5 {[%emt 0:00:00]} 2. Nf3 {[%emt 0:00:00]} d6 {[%emt 0:00:00]} 3. d4 {[%emt 0:00:11]} cxd4 {[%emt 0:00:00]} 4. Nxd4 {[%emt 0:00:13]} Nf6 {[%emt 0:00:06]} 5. Nc3 {[%emt 0:00:10]} a6 {[%emt 0:00:07]} 6. h4 {[%emt 0:00:34]} e5 {[%emt 0:01:50]} 7. Nb3 {[%emt 0:00:12]} Be7 {[%emt 0:04:52]} 8. Bg5 {[%emt 0:01:35]} Nbd7 {[%emt 0:02:14]} 9. Be2 {[%emt 0:03:40]} O-O {[%emt 0:02:29]} 10. g4 {[%emt 0:02:43]} h6 {[%emt 0:03:49]} 11. Bxf6 {[%emt 0:02:15]} Nxf6 {[%emt 0:03:33]} 12. g5 {[%emt 0:01:57]} hxg5 {[%emt 0:04:17]} 13. hxg5 {[%emt 0:00:12]} Ne8 {[%emt 0:01:07]} 14. g6 {[%emt 0:00:47]} Be6 {[%emt 0:00:57]} 15. Bc4 {[%emt 0:00:42]} Bg5 {[%emt 0:02:15]} 16. Qh5 {[%emt 0:06:04]} Bh6 {[%emt 0:00:33]} 17. gxf7+ {[%emt 0:03:33]} Bxf7 {[%emt 0:00:01]} 18. Rg1 {[%emt 0:04:40]} Qf6 {[%emt 0:05:37]} 19. Rg6 {[%emt 0:02:24]} Bxc4 {[%emt 0:09:43]} 20. Rxf6 {[%emt 0:00:29]} Nxf6 {[%emt 0:00:12]} 21. Qh3 {[%emt 0:01:06]} Rae8 {[%emt 0:04:22]} 22. Nd2 {[%emt 0:01:50]} Be6 {[%emt 0:03:30]} 23. Qg2 {[%emt 0:04:08]} Ng4 {[%emt 0:09:29]} 24. O-O-O {[%emt 0:02:29]} Rxf2 {[%emt 0:00:35]} 25. Qg3 {[%emt 0:02:20]} Bf4 {[%emt 0:01:44]} 26. Qd3 {[%emt 0:01:29]} Ne3 {[%emt 0:02:24]} 27. Re1 {[%emt 0:02:51]} Nxc2 {[%emt 0:02:28]} 28. Re2 {[%emt 0:01:06]} Nb4 {[%emt 0:01:08]} 29. Qxd6 {[%emt 0:02:25]} Rf1+ {[%emt 0:00:19]} 30. Nd1 {[%emt 0:00:20]} Rc8+ {[%emt 0:00:05]} 31. Qc7 {[%emt 0:00:34]} Rxc7+ {[%emt 0:00:02]} 0-1

[Event "Steinthor Baldursson memorial 2018"]
[Site "?"]
[Date "2018.01.06"]
[Round "5"]
[White "Mai, Aron Thor"]
[Black "Briem, Stephan"]
[Result "0-1"]
[ECO "B94"]
[WhiteElo "2066"]
[BlackElo "1890"]
[PlyCount "50"]
[EventDate "2018.??.??"]
[EventType "swiss"]
[EventCountry "ISL"]
[SourceTitle "Kopavogur"]
[TimeControl "5400+30"]
[WhiteClock "0:20:10"]
[BlackClock "0:13:58"]

1. e4 {[%emt 0:00:00]} c5 {[%emt 0:02:31]} 2. Nf3 {[%emt 0:00:00]} d6 {[%emt 0:00:29]} 3. d4 {[%emt 0:00:00]} cxd4 {[%emt 0:00:12]} 4. Nxd4 {[%emt 0:00:00]} Nf6 {[%emt 0:00:34]} 5. Nc3 {[%emt 0:00:09]} a6 {[%emt 0:00:51]} 6. Bg5 {[%emt 0:00:11]} Nbd7 {[%emt 0:00:51]} 7. f4 {[%emt 0:00:39]} Qc7 {[%emt 0:00:59]} 8. Qf3 {[%emt 0:01:14]} h6 {[%emt 0:01:02]} 9. Bxf6 {[%emt 0:05:33]} Nxf6 {[%emt 0:00:44]} 10. f5 {[%emt 0:00:36]} Qc5 {[%emt 0:03:26]} 11. O-O-O {[%emt 0:03:31]} g5 {[%emt 0:04:36]} 12. fxg6 {[%emt 0:17:53]} Bg4 {[%emt 0:01:10]} 13. gxf7+ {[%emt 0:00:34]} Kxf7 {[%emt 0:00:19]} 14. Qd3 {[%emt 0:01:45]} Bxd1 {[%emt 0:00:49]} 15. Nxd1 {[%emt 0:00:21]} Bg7 {[%emt 0:20:12]} 16. Nf5 {[%emt 0:06:10]} Rad8 {[%emt 0:06:14]} 17. Nde3 {[%emt 0:26:06]} e6 {[%emt 0:09:12]} 18. Nxg7 {[%emt 0:03:02]} Kxg7 {[%emt 0:01:07]} 19. g4 {[%emt 0:01:46]} d5 {[%emt 0:05:47]} 20. Bg2 {[%emt 0:14:16]} dxe4 {[%emt 0:08:23]} 21. Qb3 {[%emt 0:00:34]} b5 {[%emt 0:06:00]} 22. Re1 {[%emt 0:00:41]} Rd3 {[%emt 0:01:45]} 23. Qxe6 {[%emt 0:01:31]} Rxe3 {[%emt 0:00:39]} 24. Rf1 {[%emt 0:00:09]} Rf8 {[%emt 0:03:38]} 25. g5 {[%emt 0:01:51]} Qxg5 {[%emt 0:00:50]} 0-1